[Event "*** Titled Tuesday Blitz"]
[Site "Chess.com"]
[Date "2021.03.30"]
[Round "7"]
[White "KroshkaKami"]
[Black "sorrm8thatscheckm8"]
[Result "0-1"]
[WhiteElo "2445"]
[BlackElo "2622"]
[TimeControl "180+1"]
[EndTime "11:17:40 PDT"]
[Termination "sorrm8thatscheckm8 won on time"]

1. e4 {[%clk 0:03:00.9]} 1... c5 {[%clk 0:02:53.4]} 2. Nf3 {[%clk 0:02:58.2]}
2... Nc6 {[%clk 0:02:54]} 3. Nc3 {[%clk 0:02:55.7]} 3... Nf6 {[%clk 0:02:53.7]}
4. d4 {[%clk 0:02:50.2]} 4... cxd4 {[%clk 0:02:53.4]} 5. Nxd4 {[%clk 0:02:51.1]}
5... e5 {[%clk 0:02:54]} 6. Ndb5 {[%clk 0:02:47.8]} 6... d6 {[%clk 0:02:54]} 7.
Bg5 {[%clk 0:02:45.6]} 7... a6 {[%clk 0:02:53.6]} 8. Na3 {[%clk 0:02:45]} 8...
b5 {[%clk 0:02:53.8]} 9. Nd5 {[%clk 0:02:44.1]} 9... Be7 {[%clk 0:02:53.9]} 10.
Bxf6 {[%clk 0:02:35.7]} 10... Bxf6 {[%clk 0:02:54.1]} 11. c3 {[%clk 0:02:34.9]}
11... Bg5 {[%clk 0:02:53.4]} 12. Nc2 {[%clk 0:02:32.6]} 12... Rb8 {[%clk
0:02:53.9]} 13. a4 {[%clk 0:02:26.8]} 13... bxa4 {[%clk 0:02:54.8]} 14. Ncb4
{[%clk 0:02:22.1]} 14... Nxb4 {[%clk 0:02:54.3]} 15. Nxb4 {[%clk 0:02:09.4]}
15... Bd7 {[%clk 0:02:52]} 16. Bxa6 {[%clk 0:02:07.3]} 16... Qa5 {[%clk
0:02:43.7]} 17. Qxd6 {[%clk 0:01:35.6]} 17... Rb6 {[%clk 0:02:41.3]} 18. Qc7
{[%clk 0:00:51.2]} 18... Rxa6 {[%clk 0:02:25.4]} 19. Nxa6 {[%clk 0:00:49.7]}
19... Qxa6 {[%clk 0:02:26.3]} 20. Qxe5+ {[%clk 0:00:48.5]} 20... Be7 {[%clk
0:02:24.7]} 21. Qxg7 {[%clk 0:00:47.2]} 21... Bf6 {[%clk 0:02:17.4]} 22. Qg3
{[%clk 0:00:45.1]} 22... Qb5 {[%clk 0:02:08.9]} 23. Qf3 {[%clk 0:00:34.8]} 23...
Ke7 {[%clk 0:02:01.8]} 24. Qe2 {[%clk 0:00:22]} 24... Rd8 {[%clk 0:01:57.1]} 25.
Qxb5 {[%clk 0:00:18.1]} 25... Bxb5 {[%clk 0:01:57]} 26. Rd1 {[%clk 0:00:17.6]}
26... Rb8 {[%clk 0:01:51.3]} 27. Rd5 {[%clk 0:00:16.4]} 27... Bc6 {[%clk
0:01:47.7]} 28. Rd2 {[%clk 0:00:15.4]} 28... Bb5 {[%clk 0:01:45.5]} 29. f3
{[%clk 0:00:13.4]} 29... Bc4 {[%clk 0:01:43.1]} 30. Kf2 {[%clk 0:00:11.9]} 30...
Bg5 {[%clk 0:01:43]} 31. Rd4 {[%clk 0:00:09.6]} 31... Rxb2+ {[%clk 0:01:38.8]}
32. Kg3 {[%clk 0:00:08.2]} 32... Bb3 {[%clk 0:01:38.2]} 33. f4 {[%clk
0:00:08.2]} 33... a3 {[%clk 0:01:34.4]} 34. fxg5 {[%clk 0:00:05.6]} 34... a2
{[%clk 0:01:34.8]} 35. Ra1 {[%clk 0:00:05.9]} 35... Rb1 {[%clk 0:01:31.6]} 36.
Rxa2 {[%clk 0:00:05.8]} 36... Bxa2 {[%clk 0:01:31.8]} 37. h4 {[%clk 0:00:03]}
37... Rc1 {[%clk 0:01:30.4]} 38. Rd3 {[%clk 0:00:02.7]} 38... Bc4 {[%clk
0:01:28.3]} 39. Re3 {[%clk 0:00:02.6]} 39... Be6 {[%clk 0:01:27.7]} 40. Kf4
{[%clk 0:00:01.7]} 40... Rg1 {[%clk 0:01:24.2]} 41. Ke5 {[%clk 0:00:02.2]} 41...
Rxg2 {[%clk 0:01:21.5]} 42. Rf3 {[%clk 0:00:01.1]} 42... Rh2 {[%clk 0:01:19.3]}
43. Rf4 {[%clk 0:00:01.3]} 43... Rc2 {[%clk 0:01:19.1]} 44. h5 {[%clk
0:00:01.2]} 44... Rh2 {[%clk 0:01:16.5]} 0-1

[Event "*** Titled Tuesday Blitz"]
[Site "Chess.com"]
[Date "2021.03.30"]
[Round "7"]
[White "Redzishchess"]
[Black "Lyschko"]
[Result "0-1"]
[WhiteElo "2354"]
[BlackElo "2253"]
[TimeControl "180+1"]
[EndTime "11:17:40 PDT"]
[Termination "Lyschko won by resignation"]

1. e4 {[%clk 0:03:00.9]} 1... Nf6 {[%clk 0:02:59]} 2. Nc3 {[%clk 0:02:59]} 2...
d6 {[%clk 0:02:58.4]} 3. d4 {[%clk 0:02:58.9]} 3... e5 {[%clk 0:02:58.4]} 4. Nf3
{[%clk 0:02:58]} 4... Nbd7 {[%clk 0:02:57.7]} 5. Bc4 {[%clk 0:02:57.8]} 5... Be7
{[%clk 0:02:57.7]} 6. Rg1 {[%clk 0:02:56.1]} 6... c6 {[%clk 0:02:46.9]} 7. a4
{[%clk 0:02:20.2]} 7... O-O {[%clk 0:02:38.7]} 8. Ba2 {[%clk 0:02:17.9]} 8...
exd4 {[%clk 0:02:23.5]} 9. Nxd4 {[%clk 0:02:16.7]} 9... Ne5 {[%clk 0:02:21.4]}
10. Bf4 {[%clk 0:02:00.4]} 10... Ng6 {[%clk 0:02:14.6]} 11. Bg3 {[%clk
0:01:52.2]} 11... d5 {[%clk 0:02:12.7]} 12. exd5 {[%clk 0:01:43.1]} 12... Nxd5
{[%clk 0:02:08.4]} 13. Nxd5 {[%clk 0:01:41.5]} 13... cxd5 {[%clk 0:02:08.3]} 14.
Qh5 {[%clk 0:01:39.5]} 14... Bb4+ {[%clk 0:02:00.6]} 15. c3 {[%clk 0:01:37.1]}
15... Re8+ {[%clk 0:02:00.2]} 16. Ne2 {[%clk 0:01:20.6]} 16... Bf8 {[%clk
0:01:35.7]} 17. O-O-O {[%clk 0:01:19.1]} 17... Be6 {[%clk 0:01:21.4]} 18. Rge1
{[%clk 0:01:05.9]} 18... Qa5 {[%clk 0:01:16.4]} 19. Bb1 {[%clk 0:00:34]} 19...
Qxa4 {[%clk 0:01:06.8]} 20. Rd4 {[%clk 0:00:34]} 20... Qc6 {[%clk 0:01:01]} 21.
Rh4 {[%clk 0:00:33.1]} 21... h6 {[%clk 0:00:49.5]} 22. Bxg6 {[%clk 0:00:21.9]}
22... fxg6 {[%clk 0:00:46.9]} 23. Qxg6 {[%clk 0:00:22.8]} 23... Bf7 {[%clk
0:00:39.1]} 24. Qxc6 {[%clk 0:00:19.5]} 24... bxc6 {[%clk 0:00:39.2]} 25. Kd2
{[%clk 0:00:20.4]} 25... a5 {[%clk 0:00:37.1]} 26. Nd4 {[%clk 0:00:19.4]} 26...
c5 {[%clk 0:00:33.9]} 27. Rxe8 {[%clk 0:00:19]} 27... Rxe8 {[%clk 0:00:32.9]}
28. Nc6 {[%clk 0:00:16.7]} 28... Ra8 {[%clk 0:00:28.2]} 29. Ra4 {[%clk
0:00:15.7]} 29... Be8 {[%clk 0:00:25.3]} 0-1

[Event "*** Titled Tuesday Blitz"]
[Site "Chess.com"]
[Date "2021.03.30"]
[Round "7"]
[White "Beca95"]
[Black "steka121"]
[Result "1-0"]
[WhiteElo "2894"]
[BlackElo "2413"]
[TimeControl "180+1"]
[EndTime "11:17:46 PDT"]
[Termination "Beca95 won on time"]

1. d4 {[%clk 0:03:00.9]} 1... Nf6 {[%clk 0:02:58.9]} 2. Bg5 {[%clk 0:03:00.9]}
2... b5 {[%clk 0:02:58.9]} 3. e3 {[%clk 0:02:57.9]} 3... Bb7 {[%clk 0:02:57.9]}
4. Nf3 {[%clk 0:02:58.2]} 4... a6 {[%clk 0:02:57.5]} 5. Nbd2 {[%clk 0:02:56]}
5... e6 {[%clk 0:02:57.7]} 6. c3 {[%clk 0:02:55.5]} 6... Be7 {[%clk 0:02:55.9]}
7. Bd3 {[%clk 0:02:55.6]} 7... c5 {[%clk 0:02:55.6]} 8. a3 {[%clk 0:02:52.8]}
8... Nc6 {[%clk 0:02:55.4]} 9. Qe2 {[%clk 0:02:51.1]} 9... Nd5 {[%clk
0:02:50.8]} 10. Bxe7 {[%clk 0:02:46.2]} 10... Qxe7 {[%clk 0:02:51]} 11. Ne4
{[%clk 0:02:45.1]} 11... cxd4 {[%clk 0:02:45.5]} 12. cxd4 {[%clk 0:02:44.9]}
12... d6 {[%clk 0:02:43]} 13. Rc1 {[%clk 0:02:43.3]} 13... O-O {[%clk
0:02:29.2]} 14. O-O {[%clk 0:02:39.5]} 14... Rfc8 {[%clk 0:02:29.1]} 15. Nc3
{[%clk 0:02:37.8]} 15... Na5 {[%clk 0:02:21.9]} 16. Nxd5 {[%clk 0:02:35.8]}
16... Bxd5 {[%clk 0:02:22]} 17. e4 {[%clk 0:02:36.2]} 17... Bc4 {[%clk
0:02:19.4]} 18. Nd2 {[%clk 0:02:32.7]} 18... Bxd3 {[%clk 0:02:13.5]} 19. Qxd3
{[%clk 0:02:33.6]} 19... Qb7 {[%clk 0:01:57.9]} 20. d5 {[%clk 0:02:28]} 20...
exd5 {[%clk 0:01:38.7]} 21. exd5 {[%clk 0:02:27.9]} 21... Rxc1 {[%clk
0:01:36.7]} 22. Rxc1 {[%clk 0:02:26.3]} 22... Rc8 {[%clk 0:01:36.9]} 23. Rc3
{[%clk 0:02:24.9]} 23... h6 {[%clk 0:00:49.3]} 24. h3 {[%clk 0:02:23]} 24... Nc4
{[%clk 0:00:42.7]} 25. Nxc4 {[%clk 0:01:44.2]} 25... bxc4 {[%clk 0:00:42.4]} 26.
Qf5 {[%clk 0:01:43.7]} 26... Rc5 {[%clk 0:00:35.2]} 27. Re3 {[%clk 0:01:42.3]}
27... Rc8 {[%clk 0:00:19.5]} 28. Kh2 {[%clk 0:01:30]} 28... g6 {[%clk
0:00:13.1]} 29. Qg4 {[%clk 0:01:28.4]} 29... Rf8 {[%clk 0:00:07.1]} 30. Qd4
{[%clk 0:01:26.8]} 30... Qb5 {[%clk 0:00:05.6]} 31. h4 {[%clk 0:01:07.1]} 31...
h5 {[%clk 0:00:03.2]} 32. g4 {[%clk 0:01:05.9]} 32... hxg4 {[%clk 0:00:02.6]}
33. h5 {[%clk 0:01:06.3]} 33... Qd7 {[%clk 0:00:02.3]} 34. Kg3 {[%clk
0:00:58.1]} 34... Qf5 {[%clk 0:00:02]} 35. Qxg4 {[%clk 0:00:53.5]} 1-0

[Event "*** Titled Tuesday Blitz"]
[Site "Chess.com"]
[Date "2021.03.30"]
[Round "7"]
[White "northridgehawk"]
[Black "jamalm2"]
[Result "1-0"]
[WhiteElo "2309"]
[BlackElo "1971"]
[TimeControl "180+1"]
[EndTime "11:17:46 PDT"]
[Termination "northridgehawk won by resignation"]

1. e4 {[%clk 0:02:55.2]} 1... c5 {[%clk 0:02:58.2]} 2. Nf3 {[%clk 0:02:55.4]}
2... d6 {[%clk 0:02:57.5]} 3. g3 {[%clk 0:02:55.6]} 3... Nf6 {[%clk 0:02:56.4]}
4. d3 {[%clk 0:02:55.3]} 4... a6 {[%clk 0:02:54]} 5. a4 {[%clk 0:02:54]} 5... e5
{[%clk 0:02:53.2]} 6. Bg2 {[%clk 0:02:53.8]} 6... Bg4 {[%clk 0:02:48.5]} 7. Nbd2
{[%clk 0:02:53]} 7... Qd7 {[%clk 0:02:47]} 8. h3 {[%clk 0:02:52.4]} 8... Bh5
{[%clk 0:02:45.9]} 9. O-O {[%clk 0:02:51.1]} 9... Be7 {[%clk 0:02:45.6]} 10. c3
{[%clk 0:02:51.7]} 10... Nc6 {[%clk 0:02:43.6]} 11. Nc4 {[%clk 0:02:51.6]} 11...
Qd8 {[%clk 0:02:36.5]} 12. a5 {[%clk 0:02:51]} 12... O-O {[%clk 0:02:30.8]} 13.
g4 {[%clk 0:02:41.1]} 13... Bg6 {[%clk 0:02:29.6]} 14. Nb6 {[%clk 0:02:42]}
14... Rb8 {[%clk 0:02:27.3]} 15. Qa4 {[%clk 0:02:39.9]} 15... Nd7 {[%clk
0:02:26.4]} 16. Nd5 {[%clk 0:02:39.6]} 16... Nf6 {[%clk 0:02:12.3]} 17. Nxe7+
{[%clk 0:02:30.8]} 17... Qxe7 {[%clk 0:02:09.3]} 18. Bg5 {[%clk 0:02:31.7]}
18... h6 {[%clk 0:02:08.3]} 19. Bh4 {[%clk 0:02:31.9]} 19... Qe6 {[%clk
0:02:07.2]} 20. Nd2 {[%clk 0:02:31.3]} 20... Nd7 {[%clk 0:02:06.3]} 21. Nc4
{[%clk 0:02:30.5]} 21... f6 {[%clk 0:02:01.1]} 22. Ne3 {[%clk 0:02:27.9]} 22...
Bf7 {[%clk 0:01:29.4]} 23. Ra3 {[%clk 0:02:23.6]} 23... Qe8 {[%clk 0:01:27.2]}
24. Nc4 {[%clk 0:02:20.2]} 24... Bxc4 {[%clk 0:01:25.1]} 25. Qxc4+ {[%clk
0:02:21.1]} 25... Qf7 {[%clk 0:01:24.8]} 26. Qa4 {[%clk 0:02:17.3]} 26... g5
{[%clk 0:01:21.7]} 27. Bg3 {[%clk 0:02:17.5]} 27... Qe6 {[%clk 0:01:19.2]} 28.
Rd1 {[%clk 0:02:17.1]} 28... Ne7 {[%clk 0:01:18.6]} 29. Bf1 {[%clk 0:02:17.3]}
29... Kg7 {[%clk 0:01:14]} 30. Rb3 {[%clk 0:02:15.8]} 30... Ng6 {[%clk
0:01:12.5]} 31. d4 {[%clk 0:02:14.8]} 31... exd4 {[%clk 0:01:11.3]} 32. cxd4
{[%clk 0:02:15]} 32... Qxe4 {[%clk 0:01:09.7]} 33. Qxd7+ {[%clk 0:02:13]} 33...
Rf7 {[%clk 0:01:07.2]} 34. Qxd6 {[%clk 0:02:13.4]} 34... Re8 {[%clk 0:01:00.2]}
35. dxc5 {[%clk 0:02:11.3]} 35... Ne5 {[%clk 0:00:53.4]} 36. Bg2 {[%clk
0:02:09.6]} 36... Qc2 {[%clk 0:00:37.2]} 37. Rc3 {[%clk 0:02:09.4]} 37... Qxb2
{[%clk 0:00:35.8]} 38. Bd5 {[%clk 0:02:04.2]} 38... Rd7 {[%clk 0:00:34.2]} 39.
Rb3 {[%clk 0:02:02]} 39... Qc2 {[%clk 0:00:28.8]} 40. Rdb1 {[%clk 0:01:49.9]}
40... Rxd6 {[%clk 0:00:27]} 41. cxd6 {[%clk 0:01:50.8]} 41... Rd8 {[%clk
0:00:20.5]} 42. Rxb7+ {[%clk 0:01:50.5]} 42... Kh8 {[%clk 0:00:18.8]} 43. Rb8
{[%clk 0:01:34.2]} 43... Rxb8 {[%clk 0:00:16.9]} 44. Rxb8+ {[%clk 0:01:35.1]}
44... Kh7 {[%clk 0:00:15.6]} 45. Bxe5 {[%clk 0:01:35.1]} 45... fxe5 {[%clk
0:00:13.9]} 46. d7 {[%clk 0:01:35.5]} 46... Qd1+ {[%clk 0:00:13.9]} 47. Kh2
{[%clk 0:01:34.2]} 47... Qxd5 {[%clk 0:00:11.5]} 48. d8=Q {[%clk 0:01:34.4]}
48... Qxd8 {[%clk 0:00:10.6]} 49. Rxd8 {[%clk 0:01:35.3]} 49... Kg6 {[%clk
0:00:10.8]} 50. Rd6+ {[%clk 0:01:34]} 50... Kf7 {[%clk 0:00:07.8]} 51. Rxa6
{[%clk 0:01:34.9]} 1-0

[Event "*** Titled Tuesday Blitz"]
[Site "Chess.com"]
[Date "2021.03.30"]
[Round "7"]
[White "Bacyanide"]
[Black "Cryptochess"]
[Result "1-0"]
[WhiteElo "2435"]
[BlackElo "2561"]
[TimeControl "180+1"]
[EndTime "11:17:47 PDT"]
[Termination "Bacyanide won by resignation"]

1. d4 {[%clk 0:03:00.9]} 1... Nf6 {[%clk 0:02:58.2]} 2. Nf3 {[%clk 0:02:57.3]}
2... d5 {[%clk 0:02:55.7]} 3. Bf4 {[%clk 0:02:57.5]} 3... Bg4 {[%clk 0:02:54.7]}
4. e3 {[%clk 0:02:58.4]} 4... Nbd7 {[%clk 0:02:40.6]} 5. c4 {[%clk 0:02:55.4]}
5... e6 {[%clk 0:02:39.6]} 6. Nc3 {[%clk 0:02:55.1]} 6... c6 {[%clk 0:02:38.4]}
7. Qb3 {[%clk 0:02:53.8]} 7... Qb6 {[%clk 0:02:25.6]} 8. c5 {[%clk 0:02:48.8]}
8... Qxb3 {[%clk 0:02:20.9]} 9. axb3 {[%clk 0:02:49.7]} 9... Nh5 {[%clk
0:02:15.8]} 10. b4 {[%clk 0:02:45.3]} 10... Nxf4 {[%clk 0:02:12.2]} 11. exf4
{[%clk 0:02:46.2]} 11... Bxf3 {[%clk 0:02:12.8]} 12. gxf3 {[%clk 0:02:46.6]}
12... Be7 {[%clk 0:02:13.3]} 13. b5 {[%clk 0:02:46.5]} 13... Bf6 {[%clk
0:02:09.2]} 14. bxc6 {[%clk 0:02:35.5]} 14... bxc6 {[%clk 0:02:07.1]} 15. Ra4
{[%clk 0:02:33.1]} 15... Ke7 {[%clk 0:02:01.5]} 16. Kd2 {[%clk 0:02:31]} 16...
Rhb8 {[%clk 0:02:01.1]} 17. Kc2 {[%clk 0:02:16]} 17... a5 {[%clk 0:02:00.6]} 18.
Bd3 {[%clk 0:01:35.8]} 18... Rb7 {[%clk 0:01:44.5]} 19. Rha1 {[%clk 0:01:33.3]}
19... Rab8 {[%clk 0:01:39.2]} 20. R1a2 {[%clk 0:01:32.1]} 20... Rb4 {[%clk
0:01:38.7]} 21. Ne2 {[%clk 0:01:31.1]} 21... h5 {[%clk 0:01:13.8]} 22. Rxa5
{[%clk 0:01:24.9]} 22... Bxd4 {[%clk 0:01:11.8]} 23. Nxd4 {[%clk 0:01:23.2]}
23... Rxd4 {[%clk 0:01:12.4]} 24. Ra7 {[%clk 0:01:16.2]} 24... Rxf4 {[%clk
0:01:05.8]} 25. Rc7 {[%clk 0:01:11.5]} 25... Rxf3 {[%clk 0:01:03.3]} 26. Raa7
{[%clk 0:01:09.2]} 26... Rxf2+ {[%clk 0:01:03.5]} 27. Kc3 {[%clk 0:01:08.3]}
27... Rd8 {[%clk 0:00:59.2]} 28. Rxc6 {[%clk 0:01:08.3]} 28... Kf6 {[%clk
0:00:54.2]} 29. Rd6 {[%clk 0:01:03.8]} 29... Ke7 {[%clk 0:00:07.2]} 30. Bb5
{[%clk 0:00:58.1]} 30... Rf3+ {[%clk 0:00:07.5]} 31. Kc2 {[%clk 0:00:54]} 31...
Rf2+ {[%clk 0:00:07.7]} 32. Kb1 {[%clk 0:00:53.6]} 32... g5 {[%clk 0:00:06.4]}
33. Rdxd7+ {[%clk 0:00:48.6]} 33... Rxd7 {[%clk 0:00:06.9]} 34. Rxd7+ {[%clk
0:00:37.6]} 34... Kf6 {[%clk 0:00:05.9]} 35. c6 {[%clk 0:00:37.7]} 35... Rxh2
{[%clk 0:00:02.8]} 36. c7 {[%clk 0:00:37.2]} 36... Rh1+ {[%clk 0:00:03.7]} 1-0

[Event "*** Titled Tuesday Blitz"]
[Site "Chess.com"]
[Date "2021.03.30"]
[Round "7"]
[White "Fraler15"]
[Black "oogee"]
[Result "0-1"]
[WhiteElo "2243"]
[BlackElo "2379"]
[TimeControl "180+1"]
[EndTime "11:17:51 PDT"]
[Termination "oogee won on time"]

1. e4 {[%clk 0:03:00.9]} 1... c5 {[%clk 0:02:59]} 2. Nf3 {[%clk 0:03:00]} 2...
d6 {[%clk 0:02:58.3]} 3. d4 {[%clk 0:02:59.5]} 3... cxd4 {[%clk 0:02:58.5]} 4.
Nxd4 {[%clk 0:03:00.4]} 4... Nf6 {[%clk 0:02:58.5]} 5. Nc3 {[%clk 0:03:00.9]}
5... g6 {[%clk 0:02:58.3]} 6. Be3 {[%clk 0:02:56.9]} 6... Bg7 {[%clk 0:02:58.4]}
7. f3 {[%clk 0:02:57]} 7... Nc6 {[%clk 0:02:58.6]} 8. Qd2 {[%clk 0:02:57.5]}
8... O-O {[%clk 0:02:58.5]} 9. g4 {[%clk 0:02:58]} 9... Nxd4 {[%clk 0:02:51.3]}
10. Bxd4 {[%clk 0:02:56.9]} 10... Be6 {[%clk 0:02:51.4]} 11. h4 {[%clk
0:02:50.5]} 11... Qa5 {[%clk 0:02:50.8]} 12. h5 {[%clk 0:02:30.4]} 12... Rfc8
{[%clk 0:02:48]} 13. hxg6 {[%clk 0:02:29.6]} 13... fxg6 {[%clk 0:02:41.2]} 14.
g5 {[%clk 0:02:09.5]} 14... Nh5 {[%clk 0:02:38.6]} 15. Bxg7 {[%clk 0:02:08.7]}
15... Nxg7 {[%clk 0:02:35.3]} 16. O-O-O {[%clk 0:01:51.3]} 16... Bxa2 {[%clk
0:02:27.9]} 17. Nxa2 {[%clk 0:01:39.2]} 17... Qxa2 {[%clk 0:02:26.7]} 18. Qd4
{[%clk 0:01:33.6]} 18... Qa1+ {[%clk 0:01:55.7]} 19. Kd2 {[%clk 0:01:33.1]}
19... Qa5+ {[%clk 0:01:55.9]} 20. Kc1 {[%clk 0:01:07.2]} 20... Qxg5+ {[%clk
0:01:54.7]} 21. Kb1 {[%clk 0:01:07.7]} 21... Qc5 {[%clk 0:01:47]} 22. Qd2 {[%clk
0:01:00.5]} 22... a5 {[%clk 0:01:42.9]} 23. Bh3 {[%clk 0:00:53.4]} 23... Rc6
{[%clk 0:01:38]} 24. f4 {[%clk 0:00:38.1]} 24... a4 {[%clk 0:01:34.7]} 25. f5
{[%clk 0:00:25.5]} 25... a3 {[%clk 0:01:34]} 26. fxg6 {[%clk 0:00:19.8]} 26...
hxg6 {[%clk 0:01:03.8]} 27. b3 {[%clk 0:00:06.3]} 27... e6 {[%clk 0:00:44.1]}
28. Rdf1 {[%clk 0:00:03.3]} 28... Qe5 {[%clk 0:00:40.4]} 29. c3 {[%clk
0:00:01.5]} 29... Rxc3 {[%clk 0:00:31.3]} 30. Qf2 {[%clk 0:00:01.6]} 30... Rxb3+
{[%clk 0:00:26.4]} 31. Ka2 {[%clk 0:00:01.6]} 31... Rb2+ {[%clk 0:00:24.5]} 0-1

[Event "*** Titled Tuesday Blitz"]
[Site "Chess.com"]
[Date "2021.03.30"]
[Round "7"]
[White "gatocorbis"]
[Black "chessprincesa1"]
[Result "0-1"]
[WhiteElo "2091"]
[BlackElo "2244"]
[TimeControl "180+1"]
[EndTime "11:17:51 PDT"]
[Termination "chessprincesa1 won on time"]

1. e4 {[%clk 0:03:00.8]} 1... e5 {[%clk 0:02:59.3]} 2. Nf3 {[%clk 0:02:59]} 2...
Nc6 {[%clk 0:02:56.8]} 3. d4 {[%clk 0:02:58.6]} 3... exd4 {[%clk 0:02:55.4]} 4.
Nxd4 {[%clk 0:02:57.9]} 4... Nf6 {[%clk 0:02:55.3]} 5. Nxc6 {[%clk 0:02:55.2]}
5... bxc6 {[%clk 0:02:54.5]} 6. e5 {[%clk 0:02:54.6]} 6... Nd5 {[%clk
0:02:53.2]} 7. c4 {[%clk 0:02:51.7]} 7... Nb6 {[%clk 0:02:48.9]} 8. Nc3 {[%clk
0:02:49.8]} 8... Bb4 {[%clk 0:02:43.6]} 9. Bd3 {[%clk 0:02:44.8]} 9... Qe7
{[%clk 0:02:35.1]} 10. O-O {[%clk 0:02:42.8]} 10... O-O {[%clk 0:02:33.8]} 11.
Qh5 {[%clk 0:02:22.8]} 11... g6 {[%clk 0:02:30.4]} 12. Qh6 {[%clk 0:02:14.5]}
12... Qxe5 {[%clk 0:02:13]} 13. Bf4 {[%clk 0:02:04.4]} 13... Qg7 {[%clk
0:02:09.9]} 14. Qh4 {[%clk 0:01:56.1]} 14... Qd4 {[%clk 0:02:00.8]} 15. Qg3
{[%clk 0:01:50.6]} 15... d6 {[%clk 0:01:53.5]} 16. Rad1 {[%clk 0:01:34.4]} 16...
Qg7 {[%clk 0:01:43.3]} 17. Ne4 {[%clk 0:01:22.2]} 17... d5 {[%clk 0:01:28.5]}
18. Ng5 {[%clk 0:01:06.2]} 18... dxc4 {[%clk 0:01:20.1]} 19. Be4 {[%clk
0:01:04.9]} 19... Nd5 {[%clk 0:01:11]} 20. Bc1 {[%clk 0:00:58.3]} 20... Bd6
{[%clk 0:01:04.8]} 21. Qf3 {[%clk 0:00:49.8]} 21... h6 {[%clk 0:00:55.9]} 22.
Nh3 {[%clk 0:00:41]} 22... Be6 {[%clk 0:00:52.7]} 23. a3 {[%clk 0:00:31.6]}
23... f5 {[%clk 0:00:48.8]} 24. Bxd5 {[%clk 0:00:27.3]} 24... Bxd5 {[%clk
0:00:48.3]} 25. Rxd5 {[%clk 0:00:25.9]} 25... cxd5 {[%clk 0:00:42.7]} 26. Qxd5+
{[%clk 0:00:16]} 26... Kh7 {[%clk 0:00:42.4]} 27. Qxc4 {[%clk 0:00:11.2]} 27...
Rae8 {[%clk 0:00:32.4]} 28. Nf4 {[%clk 0:00:09.6]} 28... Re4 {[%clk 0:00:29.3]}
29. Qc2 {[%clk 0:00:07.3]} 29... Bxf4 {[%clk 0:00:28.8]} 0-1

[Event "*** Titled Tuesday Blitz"]
[Site "Chess.com"]
[Date "2021.03.30"]
[Round "7"]
[White "OparinGrigoriy"]
[Black "GMKrikor"]
[Result "1-0"]
[WhiteElo "2995"]
[BlackElo "2842"]
[TimeControl "180+1"]
[EndTime "11:17:52 PDT"]
[Termination "OparinGrigoriy won by resignation"]

1. d4 {[%clk 0:03:00.9]} 1... Nf6 {[%clk 0:02:59.4]} 2. Nf3 {[%clk 0:03:01.4]}
2... g6 {[%clk 0:02:59.4]} 3. c4 {[%clk 0:03:02.3]} 3... Bg7 {[%clk 0:02:59.4]}
4. g3 {[%clk 0:03:03.2]} 4... d5 {[%clk 0:02:57.7]} 5. Bg2 {[%clk 0:03:04.1]}
5... dxc4 {[%clk 0:02:57.1]} 6. O-O {[%clk 0:03:04.4]} 6... O-O {[%clk
0:02:57.1]} 7. Na3 {[%clk 0:03:05.1]} 7... c3 {[%clk 0:02:55.1]} 8. bxc3 {[%clk
0:03:05]} 8... c5 {[%clk 0:02:55.5]} 9. e3 {[%clk 0:03:05.5]} 9... Nc6 {[%clk
0:02:55.5]} 10. Bb2 {[%clk 0:03:04.5]} 10... Qb6 {[%clk 0:02:34.6]} 11. Qe2
{[%clk 0:03:03.2]} 11... Be6 {[%clk 0:02:27.3]} 12. c4 {[%clk 0:03:00.5]} 12...
Bf5 {[%clk 0:02:04.1]} 13. d5 {[%clk 0:02:54.6]} 13... Nb4 {[%clk 0:02:03.5]}
14. Rfd1 {[%clk 0:02:53.8]} 14... a6 {[%clk 0:01:50.3]} 15. Ne5 {[%clk
0:02:50.4]} 15... Rad8 {[%clk 0:01:43.4]} 16. e4 {[%clk 0:02:50.1]} 16... Bc8
{[%clk 0:01:43.6]} 17. Rab1 {[%clk 0:02:48.8]} 17... e6 {[%clk 0:01:37.4]} 18.
Nd3 {[%clk 0:02:47.6]} 18... exd5 {[%clk 0:01:31.6]} 19. cxd5 {[%clk 0:02:44.4]}
19... Bg4 {[%clk 0:01:26]} 20. Bf3 {[%clk 0:02:44.8]} 20... Bxf3 {[%clk
0:01:22.1]} 21. Qxf3 {[%clk 0:02:45.7]} 21... Rfe8 {[%clk 0:01:04.9]} 22. Nc4
{[%clk 0:02:43.3]} 22... Qb5 {[%clk 0:01:01.1]} 23. Bxf6 {[%clk 0:02:24.2]}
23... Qxc4 {[%clk 0:00:52.5]} 24. Bxd8 {[%clk 0:02:15.3]} 24... Rxd8 {[%clk
0:00:52.9]} 25. Nxb4 {[%clk 0:02:15.5]} 25... cxb4 {[%clk 0:00:52.4]} 26. d6
{[%clk 0:02:11.9]} 26... b5 {[%clk 0:00:41.6]} 27. d7 {[%clk 0:02:06.4]} 27...
Bc3 {[%clk 0:00:36.4]} 28. Qf4 {[%clk 0:02:03.2]} 28... a5 {[%clk 0:00:25.4]}
29. Qg5 {[%clk 0:02:03.3]} 29... f6 {[%clk 0:00:24.1]} 30. Qe3 {[%clk
0:01:53.4]} 30... Qc6 {[%clk 0:00:20.8]} 31. Qd3 {[%clk 0:01:48.7]} 31... Kf7
{[%clk 0:00:18.8]} 32. a3 {[%clk 0:01:28.2]} 32... Ke6 {[%clk 0:00:18.4]} 33.
axb4 {[%clk 0:01:28.4]} 33... axb4 {[%clk 0:00:19.3]} 34. Kf1 {[%clk 0:01:09.8]}
34... Rxd7 {[%clk 0:00:16.7]} 35. Qxd7+ {[%clk 0:01:09.8]} 35... Qxd7 {[%clk
0:00:17.6]} 36. Rxd7 {[%clk 0:01:10.4]} 36... Kxd7 {[%clk 0:00:17.8]} 37. Ke2
{[%clk 0:01:11.3]} 37... Kd6 {[%clk 0:00:11]} 38. Kd3 {[%clk 0:01:11.9]} 38...
Kc5 {[%clk 0:00:06.2]} 39. Rd1 {[%clk 0:01:12.1]} 39... Be5 {[%clk 0:00:06]} 40.
f4 {[%clk 0:01:11.5]} 40... Bc3 {[%clk 0:00:05.7]} 41. Kc2 {[%clk 0:01:11.1]}
41... Kc4 {[%clk 0:00:05.2]} 42. Rd7 {[%clk 0:01:11.6]} 42... b3+ {[%clk
0:00:05.4]} 43. Kb1 {[%clk 0:01:12.1]} 43... Bd4 {[%clk 0:00:02.2]} 44. Rxh7
{[%clk 0:01:10.1]} 44... Kd3 {[%clk 0:00:02.8]} 45. Re7 {[%clk 0:01:10.6]} 45...
b4 {[%clk 0:00:02.3]} 46. h4 {[%clk 0:01:08.9]} 46... Ke3 {[%clk 0:00:02.2]} 47.
f5 {[%clk 0:01:09.4]} 47... gxf5 {[%clk 0:00:02.1]} 48. exf5+ {[%clk 0:01:10.3]}
48... Kf3 {[%clk 0:00:03]} 49. h5 {[%clk 0:01:10.8]} 1-0